Cogmind - Beta 15 @@@ ROGUE MODE // 2025.07.07 @ 03:44:45 Player: Finn Result: Destroyed by EMP Trap Performance ------------- Evolutions (2) 1000 Regions Visited (5) 1000 Robots Destroyed (13) 65 Value Destroyed (286) 286 Prototype IDs (2) 40 Alien Tech Used (0) 0 Bonus (177) 177 TOTAL SCORE: 2568 Bonus ------- Follower Combat Kills 177 Cogmind --------- Core Integrity 0/550 Matter 300/300 Energy 94/100 System Corruption 0% Temperature Cool (2) Movement Flying (34) Location -8/Storage Parts ------- > --- POWER (1) -------- (None) > --- PROPULSION (5) --- Flight Unit Improved VTOL Module > --- UTILITY (3) ------ Improved Melee Analysis Suite > --- WEAPON (2) ------- (None) > --- INVENTORY (5) ---- Hardlight Generator Beam Rifle Heavy Particle Gun Proton Missile Launcher Peak State ------------ > --- POWER ------------ Light Ion Engine > --- PROPULSION ------- Improved VTOL Module Improved VTOL Module Improved VTOL Module > --- UTILITY ---------- Sensor Array Improved Melee Analysis Suite Microactuators > --- WEAPON ----------- Small Laser Katana > --- INVENTORY -------- Improved VTOL Module Hardlight Generator Proton Missile Launcher [Rating: 27] Favorites ----------- Power Light Ion Engine Engine Light Ion Engine Propulsion Improved VTOL Module Treads Light Treads Flight Unit Improved VTOL Module Utility Sensor Array Device Sensor Array Processor Improved Melee Analysis Suite Protection Light Armor Plating Weapon Light Assault Rifle Energy Gun Small Laser Ballistic Gun Light Assault Rifle Launcher Proton Missile Launcher Impact Weapon Hammer Slashing Weapon Katana Build | -11 -10 -9 -9 -8 -8 ------- Run | Yrd Mat Mat Min Mat Sto Slots Evolved 4 | . . 2 . 2 . Power . | . . . . . . Propulsion 3 | . . 1 . 2 . Utility 1 | . . 1 . . . Weapon . | . . . . . . Parts Attached 27 | 4 4 7 4 2 6 Power 3 | 1 1 1 . . . Engine 3 | 1 1 1 . . . Core . | . . . . . . Reactor . | . . . . . . Propulsion 10 | 2 . 3 1 . 4 Treads 2 | 2 . . . . . Leg . | . . . . . . Wheel . | . . . . . . Hover . | . . . . . . Flight 8 | . . 3 1 . 4 Utility 6 | . 3 1 2 . . Device 4 | . 2 1 1 . . Storage . | . . . . . . Processor 1 | . . . 1 . . Hackware . | . . . . . . Protection 1 | . 1 . . . . Artifact . | . . . . . . Weapon 8 | 1 . 2 1 2 2 Energy Gun 3 | . . . 1 2 . Energy Cannon . | . . . . . . Ballistic Gun 2 | 1 . 1 . . . Ballistic Cannon . | . . . . . . Launcher 1 | . . . . . 1 Special Weapon . | . . . . . . Impact Weapon 1 | . . . . . 1 Slashing Weapon 1 | . . 1 . . . Piercing Weapon . | . . . . . . Special Melee Weapon . | . . . . . . Unidentified Prototypes 2 | . . 1 . 1 . Parts Lost 21 | . 5 2 3 5 6 Power 3 | . 1 . 1 1 . Propulsion 8 | . 2 . 1 . 5 Utility 5 | . 2 . 1 2 . Weapon 5 | . . 2 . 2 1 Highest Loss Streak 6 | . 5 6 3 2 4 To Critical Strikes . | . . . . . . Average Backups 2 | . 1 4 3 2 4 Power . | . . 1 . . . Propulsion . | . . 1 1 . . Utility . | . . 1 1 1 1 Weapon 1 | . . . . 1 3 Tool/Special . | . . . . . . Unused Backups 3 | . . . 1 1 1 Power . | . . . . . . Propulsion 2 | . . . 1 1 . Utility 1 | . . . . . 1 Weapon . | . . . . . . Tool/Special . | . . . . . . Average Slot Usage (%) 62 | . 73 33 76 62 43 Engine 7 | . 14 3 8 3 . Treads 11 | . 27 . . . . Flight 14 | . . 16 30 27 29 Device 9 | . 12 4 12 12 . Processor 3 | . . . 5 9 9 Protection 2 | . 4 . . . . Energy Gun 2 | . . . 8 6 . Ballistic Gun 6 | . 14 2 . . . Slashing Weapon 2 | . . 7 11 4 . Peak Build Rating 27 | 4 6 21 26 27 18 Average Rating 11 | 3 5 12 21 22 13 On Entrance 11 | . 4 1 21 26 17 Naked Turns 19 | . . 19 . . . Heaviest Build 10 | 4 10 10 10 9 2 Greatest Support 40 | 40 40 15 15 15 21 Greatest Overweight (x) 2 | . 2 . . . . Average Overweight (x) . | . . . . . . Largest Inventory Capacity 5 | 5 5 5 5 5 5 Average Capacity 5 | 5 5 5 5 5 5 Most Carried 5 | 4 3 5 5 4 5 Average Carried 2 | . 1 4 3 2 4 Final Capacity 5 | 5 5 5 5 5 5 Final Carried 5 | . 3 5 2 4 4 Class Distribution -------------------- 54% | Mutant 39% | Sprinter 5% | Commander-Sprinter Dominant Class ---------------- Mutant | -10/Materials Sprinter | -9/Materials Sprinter | -9/Mines Sprinter | -8/Materials Sprinter | -8/Storage Resources | -11 -10 -9 -9 -8 -8 ----------- Run | Yrd Mat Mat Min Mat Sto Matter Collected 497 | 215 41 131 50 6 54 Remotely . | . . . . . . Salvage Created 390 | . 129 186 22 53 . Parts 30 | . 6 16 3 5 . Haulers Intercepted . | . . . . . . Recyclers Shooed 1 | . . . . . 1 Parts Field Recycled . | . . . . . . Retrieved Matter . | . . . . . . Parts Self-Destructed . | . . . . . . Prevented . | . . . . . . Kills | -11 -10 -9 -9 -8 -8 ------- Run | Yrd Mat Mat Min Mat Sto Combat Hostiles Destroyed 11 | . 7 3 . 1 . Melee 4 | . . 3 . 1 . Guns 7 | . 7 . . . . Classes Destroyed 5 | . 2 2 1 . . Builder 1 | . . 1 . . . Tunneler 1 | . . . 1 . . Swarmer 6 | . 6 . . . . Grunt 1 | . 1 . . . . Sentry 4 | . . 3 . 1 . Best Kill Streak 3 | . 3 2 1 1 . Combat Bots Only 3 | . 3 2 . 1 . Max Kills in Single Turn 1 | . 1 1 1 1 . Gunslinging . | . . . . . . Exploded . | . . . . . . Melee 1 | . . 1 . 1 . Uniques/NPCs Destroyed . | . . . . . . Combat | -11 -10 -9 -9 -8 -8 -------- Run | Yrd Mat Mat Min Mat Sto Hostile Shots Fired 290 | . 107 22 48 50 63 Missed 101 | . 22 7 24 23 25 Hits 189 | . 85 15 24 27 38 Projectile 189 | . 85 15 24 27 38 Critical Strikes 2 | . . . . 1 1 Damage Taken 2348 | . 725 219 332 499 573 Core 953 | . 161 102 129 225 336 Absorbed by Shields 27 | . . . . . 27 Core Remaining (%) 59 | 100 35 . 42 . . Volleys Fired 73 | . 61 1 3 8 . Largest 1 | . 1 1 1 1 . Hottest 56 | . 20 20 40 56 . Shots Fired 73 | . 61 1 3 8 . Gun 73 | . 61 1 3 8 . Cannon . | . . . . . . Launcher . | . . . . . . Special . | . . . . . . Kinetic 62 | . 61 1 . . . Thermal 11 | . . . 3 8 . Explosive . | . . . . . . Electromagnetic . | . . . . . . Robot Hit Streak 6 | . 4 1 2 6 . Robot Miss Streak 4 | . 4 . 1 1 . Penetration Max . | . . . . . . Secondary Targets . | . . . . . . Shots Hit Robots 65 | . 31 11 7 12 4 Core Hits 20 | . 12 3 1 4 . Critical Kills . | . . . . . . Critical Parts Destroyed . | . . . . . . Critical Strikes 4 | . . 2 1 . 1 Smash 1 | . . . . . 1 Sever 3 | . . 2 1 . . Melee Attacks 31 | . . 12 8 5 6 Impact 6 | . . . . . 6 Slashing 25 | . . 12 8 5 . Piercing . | . . . . . . Sneak Attacks 4 | . . 1 . 1 2 Combat Hostiles 1 | . . . . 1 . Follow-up Attacks . | . . . . . . Damage Inflicted 1256 | . 274 359 204 283 136 Guns 398 | . 274 8 24 92 . Cannons . | . . . . . . Explosions . | . . . . . . Melee 858 | . . 351 180 191 136 Ramming . | . . . . . . Kinetic 282 | . 274 8 . . . Thermal 116 | . . . 24 92 . Explosive . | . . . . . . Electromagnetic . | . . . . . . Impact 136 | . . . . . 136 Slashing 722 | . . 351 180 191 . Piercing . | . . . . . . Highest Corruption 1 | . . 1 1 . . Average Corruption 1 | . . 1 1 . . Corruption Purged . | . . . . . . Corruption Blocked . | . . . . . . Effects 1 | . . . 1 . . Message Errors 1 | . . . 1 . . Overload Shots . | . . . . . . Overflow Damage 64 | . . 45 13 1 5 Projectiles . | . . . . . . Explosions . | . . . . . . Melee 64 | . . 45 13 1 5 Knockbacks 1 | . . . . . 1 Impact 1 | . . . . . 1 Kinetic . | . . . . . . Secondary . | . . . . . . Self-Inflicted Damage . | . . . . . . Shots . | . . . . . . Rammed . | . . . . . . Targets Rammed . | . . . . . . Kicked . | . . . . . . Crushed . | . . . . . . Highest Temperature 57 | . 15 . 17 57 8 Average Temperature 11 | . 4 . 10 29 8 Received Heat Transfer 666 | . 60 72 183 180 171 Siege Activations . | . . . . . . Martial Activations . | . . . . . . Shielding Activations . | . . . . . . Robots Disrupted . | . . . . . . Combat Hostiles . | . . . . . . Robots Corrupted . | . . . . . . Combat Hostiles . | . . . . . . Parts Fried . | . . . . . . Impact Corruptions 1 | . . . . . 1 Robots Melted . | . . . . . . Combat Hostiles . | . . . . . . Parts Melted . | . . . . . . Heat Transferred 273 | . . . 50 223 . Parts Sabotaged . | . . . . . . Parts Stolen . | . . . . . . Parts Stripped . | . . . . . . Power Chain Reactions . | . . . . . . Alert | -11 -10 -9 -9 -8 -8 ------- Run | Yrd Mat Mat Min Mat Sto Maximum Alert Level . | . . . . . . Low Security (%) 100 | 100 100 100 100 100 100 Level 1 . | . . . . . . Level 2 . | . . . . . . Level 3 . | . . . . . . Level 4 . | . . . . . . Level 5 . | . . . . . . High Security . | . . . . . . Max Security . | . . . . . . Peak Influence 122 | . 74 70 75 65 122 Initial 27 | . . . 19 9 27 Average 25 | . 19 31 35 15 52 Influence Increases 880 | . 170 110 80 135 385 Destroy 0b10 Robot/C 340 | . 140 60 . 20 120 Destroy 0b10 Robot/NC 10 | . . 5 5 . . Destroy Leader 120 | . 30 30 . 10 50 Allied During Kill 49 | . . . . . 49 Successful Hack 1 | . . . . . 1 Partial Spotted 45 | . . . . 15 30 Lose Combat Pursuer 315 | . . 15 75 90 135 Influence Decreases 805 | . 170 60 105 95 375 Entered New Map 85 | . . . 31 16 38 Time Decay 378 | . 128 50 65 55 80 Lost Part 142 | . 42 10 9 24 57 Lost Ally 200 | . . . . . 200 Squads Dispatched 6 | . 2 . 1 1 2 Investigation 3 | . . . 1 1 1 Extermination . | . . . . . . Reinforcement 3 | . 2 . . . 1 Assault . | . . . . . . Garrison . | . . . . . . Intercept . | . . . . . . Searches Triggered . | . . . . . . Construction Impeded . | . . . . . . Haulers Reinforced . | . . . . . . Active Scanning Responses . | . . . . . . Cargo Convoy Interrupts . | . . . . . . Stealth | -11 -10 -9 -9 -8 -8 --------- Run | Yrd Mat Mat Min Mat Sto Distress Signals 6 | . 4 . . . 2 Communications Jammed . | . . . . . . Distress Signals . | . . . . . . Times Spotted 73 | . 20 5 5 17 26 Peak Tracking Total 11 | . 6 3 5 11 8 Tactical Retreats 8 | . . 1 1 2 4 Traps | -11 -10 -9 -9 -8 -8 ------- Run | Yrd Mat Mat Min Mat Sto Traps Triggered 4 | . . 1 . 1 2 Indirectly . | . . . . . . Trap Hack Attempts . | . . . . . . Triggered . | . . . . . . Disarmed . | . . . . . . Reprogrammed . | . . . . . . Reused . | . . . . . . Traps Extracted . | . . . . . . Installed . | . . . . . . Triggered . | . . . . . . Machines | -11 -10 -9 -9 -8 -8 ---------- Run | Yrd Mat Mat Min Mat Sto Machines Disabled . | . . . . . . Max in Single Turn . | . . . . . . Machines Repaired . | . . . . . . Machines Dismantled . | . . . . . . Machines Sabotaged . | . . . . . . Overloaded Fab Kills . | . . . . . . Hacking | -11 -10 -9 -9 -8 -8 --------- Run | Yrd Mat Mat Min Mat Sto Machines Accessed 3 | . . . 1 . 2 Terminals 2 | . . . . . 2 Fabricators . | . . . . . . Repair Stations . | . . . . . . Recycling Units . | . . . . . . Scanalyzers . | . . . . . . Garrison Access . | . . . . . . Total Hacks 3 | . . . 1 . 2 Successful 3 | . . . 1 . 2 Failed . | . . . . . . Catastrophic . | . . . . . . Database Lockouts . | . . . . . . Manual . | . . . . . . Terminals 2 | . . . . . 2 Fabricators . | . . . . . . Repair Stations . | . . . . . . Recycling Units . | . . . . . . Scanalyzers . | . . . . . . Garrison Access . | . . . . . . Terminal Hacks 3 | . . . 1 . 2 Record 1 | . . . . . 1 Open Door 2 | . . . 1 . 1 Fabricator Hacks . | . . . . . . Repair Station Hacks . | . . . . . . Recycling Unit Hacks . | . . . . . . Scanalyzer . | . . . . . . Garrison Access Hacks . | . . . . . . Unauthorized Hacks . | . . . . . . Terminals . | . . . . . . Fabricators . | . . . . . . Repair Stations . | . . . . . . Recycling Units . | . . . . . . Scanalyzers . | . . . . . . Garrison Access . | . . . . . . Data Cores Recovered . | . . . . . . Used . | . . . . . . Hacking Detections . | . . . . . . Full Trace Events . | . . . . . . Feedback Events . | . . . . . . Feedback Blocked . | . . . . . . Robot Schematics Acquired . | . . . . . . Robots Built . | . . . . . . Authchips . | . . . . . . Time . | . . . . . . Total Robot Build Rating . | . . . . . . Part Schematics Acquired . | . . . . . . Parts Built . | . . . . . . Authchips . | . . . . . . Time . | . . . . . . Total Part Build Rating . | . . . . . . Parts Repaired . | . . . . . . Time . | . . . . . . Parts Recycled . | . . . . . . Recycled Matter . | . . . . . . Retrieved Matter . | . . . . . . Retrieved Components . | . . . . . . Parts Scanalyzed . | . . . . . . Part Schematics Acquired . | . . . . . . Parts Damaged . | . . . . . . Bothacking | -11 -10 -9 -9 -8 -8 ------------ Run | Yrd Mat Mat Min Mat Sto Used RIF Installer . | . . . . . . Robots Hacked . | . . . . . . Non-combat . | . . . . . . Combat . | . . . . . . Robot Hacks Applied . | . . . . . . Relay Couplers Released . | . . . . . . Fabnet Peak Effective % . | . . . . . . Robots Rewired . | . . . . . . Allies Hacked . | . . . . . . Hacks Repelled . | . . . . . . Allies | -11 -10 -9 -9 -8 -8 -------- Run | Yrd Mat Mat Min Mat Sto Total Allies 10 | . . . . . 10 Largest Group 10 | . . . . . 10 Highest-Rated Group 173 | . . . . . 173 Highest-Rated Ally 29 | . . . . . 29 Total Orders . | . . . . . . Ally Attacks 45 | . . . . . 45 Total Damage 572 | . . . . . 572 Kills 6 | . . . . . 6 Allies Corrupted . | . . . . . . Allies Melted . | . . . . . . Intel | -11 -10 -9 -9 -8 -8 ------- Run | Yrd Mat Mat Min Mat Sto Active Infowar (turns) 597 | . 433 . 72 92 . Sensors 597 | . 433 . 72 92 . Robot Analysis Total . | . . . . . . Derelict Logs Recovered 2 | . . . 2 . . Drone Launches . | . . . . . . Drone Recoveries . | . . . . . . Exploration | -11 -10 -9 -9 -8 -8 ------------- Run | Yrd Mat Mat Min Mat Sto Turns Passed 1216 | 80 507 121 143 170 195 Spaces Moved 1520 | 54 243 209 359 279 376 Core 77 | 12 9 56 . . . Treads 276 | 42 234 . . . . Legs . | . . . . . . Wheels . | . . . . . . Hover . | . . . . . . Flight 1167 | . . 153 359 279 376 Fastest Speed 27 | 50 50 29 29 29 27 Average Speed 54 | 135 158 34 29 29 30 Slowest Speed 160 | 160 160 50 32 29 35 Overloaded Moves . | . . . . . . Propulsion Burnouts . | . . . . . . Robots Hopped 7 | . . . 1 1 5 Potential Cave-ins . | . . . . . . Cave-ins Triggered . | . . . . . . Exploration Rate (%) 41 | 4 54 20 74 28 67 Regions Visited 5 Branch Regions 2 Pre-discovered Areas . | . . . . . . Known Exits Taken 1 | . . . . 1 . Unknown Exits Taken 4 | 1 1 1 1 . . Scrap Searched 2 | . . . 2 . . Spaces Dug . | . . . . . . Terrain Destroyed . | . . . . . . Melee . | . . . . . . Projectile . | . . . . . . AOE . | . . . . . . Terrain Rammed . | . . . . . . Walls Destroyed . | . . . . . . Machines Disabled . | . . . . . . Actions | -11 -10 -9 -9 -8 -8 --------- Run | Yrd Mat Mat Min Mat Sto Total 1781 | 61 313 235 377 354 441 Wait 104 | . 1 . . 56 47 Move 1503 | 53 242 208 356 276 368 Hop 5 | . . . 1 1 3 Pick Up 21 | 4 5 5 2 3 2 Fast Attach 10 | . . 5 2 . 3 Attach 18 | 4 2 3 4 2 3 Detach 3 | . . . . 2 1 Swap 2 | . 2 . . . . Drop 3 | . . 1 1 1 . Fire 73 | . 61 1 3 8 . Melee 31 | . . 12 8 5 6 Ram . | . . . . . . Kick . | . . . . . . Crush . | . . . . . . Escape Stasis 8 | . . . . . 8 Rewire . | . . . . . . Trap . | . . . . . . Miscellaneous . | . . . . . . Route ------- -11/Scrapyard -10/Materials (discovered 3 exits: *Mat / [*Min x2]) -9/Materials -9/Mines -8/Materials (discovered 2 exits: [*Fac] / *Sto) -8/Storage (discovered 2 exits: [*Fac] / Rec) History --------- Turn | Location | Event 7 | -11/Scrapyard | Discovered new exit (range 15) 81 | -11/Scrapyard | Entered Materials 131 | -10/Materials | Discovered new exit (range 16) 287 | -10/Materials | Discovered new exit (range 12) 308 | -10/Materials | Build established: Mutant 395 | -10/Materials | Discovered new exit (range 7) 577 | -10/Materials | Core integrity fell below 50% 588 | -10/Materials | Entered another Materials area 588 | -9/Materials | Evolved 2 slots: Propulsion x1, Utility x1 627 | -9/Materials | Lost 6 parts (1p2n2u1w) 701 | -9/Materials | Discovered new exit (range 16) 709 | -9/Materials | Entered Mines 734 | -9/Mines | Core integrity fell below 50% 741 | -9/Mines | Learned location of 1 exit from Materials 769 | -9/Mines | Lost 3 parts (1p1n1u) 775 | -9/Mines | Met a Derelict shopkeep closing up shop 839 | -9/Mines | Discovered new exit (range 9) 852 | -9/Mines | Entered Materials 852 | -8/Materials | Evolved 2 slots: Propulsion x2 853 | -8/Materials | Identified exit to Storage 938 | -8/Materials | Build established: Sprinter 991 | -8/Materials | Discovered new exit (range 16) 1022 | -8/Materials | Entered Storage 1023 | -8/Storage | Identified exit to Recycling 1078 | -8/Storage | Core integrity fell below 50% 1145 | -8/Storage | Assisted by bots powering up and referring to "LRC-V3" 1183 | -8/Storage | Core integrity fell below 20% 1216 | -8/Storage | Discovered new exit (range 6) 1217 | -8/Storage | Destroyed by EMP Trap Last Messages --------------- 01184_ Flight Unit destroyed. 01188_ Critical hit (Burn: +37). 01193_ U-05 Engineer builds a Door. 01194_ Y-45 Defender destroyed. 01212_ Flight Unit destroyed. 01216_ EXIT=FOUND 01217_ Triggered EMP Trap. 01217_ A bubble of electromagnetic force engulfs the area. 01217_ EMP Trap short circuited. 01217_ S-10 Pest destroyed. 01217_ EMP Trap short circuited. 01217_ A bubble of electromagnetic force engulfs the area. 01217_ S-10 Pest destroyed. 01217_ A bubble of electromagnetic force engulfs the area. 01217_ EMP Trap short circuited. 01217_ A bubble of electromagnetic force engulfs the area. Map ----- +----------------------------------------------------+ | ??##/#####[######## # # #??# | | ??# ##?# #??????# # # #### | | ?# T#?# #??????# # """ + | | ?# #?# #??????# # """ # #### | | ?# #?#+######## # """ # #??# | | ?######### # # # #??# | | ??????#""" """ # ##"T"# # #??# | | ??????#"R """ # ########+#### | | ??????#""" """ # # # | | ??????#### + # """ """ # | | ????????# """ # # """ """ # | | ????????## """ # # """ """ # | | ?????????# """ # + # | | ?????????# # # "T" # | | ?????????###T###### # """ # | | ???????????###????# # # | | ??????????????????# # ######### | | ????????########### #### ???# | | ????????# #### ## | | ????????# / """?## | | ????????+ #### """ # | | ????????# ########+##??# """ # | | ????????# =s#????????????# / T | | ????????#=%=#????????????# """ # | | ????????# %#????????????# """ # | | ????????#[%@#????????????# """?##### | | ????????# < #????????????# ?????? | | ????????# #????????????# ??????? | | ????????#####????????????# ??????? | | ?????????????????????????###???????? | | ???????????????????????????????????? | | ???????????????????????????????????? | | ???????????????????????????????????? | | ???????????????????????????????????? | | ???????????????????????????????????? | | ???????????????????????????????????? | | ???????????????????????????????????? | | ???????????????????????????????????? | | | | | | | | | | | | | | | | | | | | | | | | | +----------------------------------------------------+ Best States ------------- Heat Dissipation 31 Energy Generation 12 Energy Capacity 265 Matter Stores 300 Matter Capacity 300 Sight Range 16 Robot Scan Range 14 Terrain Scan Density 10 Base Temperature (-) 100 Armor Coverage 150 Melee Speed Boost 20 Evasion (%) 64 Melee Accuracy 6 Recoil Reduction 2 Item Schematics ----------------- None Robot Schematics ------------------ None Fabricated ------------ Nothing Repaired ---------- Nothing Alien Tech Used ----------------- None Achievements -------------- None Challenges ------------ None Game ------ Seed TrapRecyclingStick Manual? 0 Play Time 00:18:32 Cumulative 14.2 hours Start 2025.07.07 @ 03:28:06 End 2025.07.07 @ 03:44:45 Sessions 1 Manual Loads 0 Difficulty Rogue Special Mode None Game No. 26 Rogue 9 Adventurer 15 Explorer 2 Win Type - Total 0 Types 0/0/0/0/0/0/0/0/0/0 Lore% 11 Gallery% 18 Achievement% 19 Wizard Run 0 Options --------- Layout 1 ASCII 0 Keyboard 0 Movement Mouse Keybinds 0 Fullscreen 1 Font 24/Smallcaps Map View 50x35 Zoom Use 0% Tactical HUD 1 Map Filters NONE Filters NONE Steam 1 RUN: 310baa69-a831-4d56-9fa0-d4c0889c7051